bitfinex/quotes_SOLUSD_20240727
["timestamp","ask_amount","ask_price","bid_price","bid_amount"]
[1722091304648,5.37,186.22,186.17,5.3713]
[1722091304874,5.37,186.22,186.12,45.34]
[1722091305046,5.3702,186.21,186.16,5.3714]
[1722091305246,15.5618,186.24,186.17,5.3714]
[1722091305563,1.07353351,186.23,186.17,5.3714]
[1722091305970,15.5618,186.24,186.17,5.3714]
[1722091306447,5.3697,186.23,186.18,5.3711]
[1722091308567,5.3697,186.23,186.17,5.3713]
[1722091309072,5.3701,186.22,186.17,5.3713]
[1722091311545,5.3703,186.21,186.15,5.3717]
[1722091311744,5.3703,186.21,186.12,45.34]
[1722091311944,6.44403351,186.2,186.15,5.3719]
[1722091312240,5.3705,186.2,186.15,5.3719]
[1722091314669,5.3699,186.23,186.17,5.3713]
[1722091314875,5.3699,186.23,186.18,5.371]
[1722091317249,11.9933,186.27,186.14,15.444]
[1722091317475,5.3683,186.28,186.19,45.0]
[1722091317676,1.07353351,186.27,186.15,20.34]
[1722091317972,5.3691,186.25,186.2,5.3705]
[1722091318679,1.07353351,186.24,186.16,45.0]
[1722091318859,5.3703,186.21,186.16,50.3714]
[1722091319593,6.44343351,186.23,186.17,5.3713]
[1722091319794,6.44353351,186.22,186.17,5.3713]
[1722091319981,5.37,186.22,186.17,5.3713]
[1722091320590,5.3704,186.21,186.09,21.9674]
[1722091320793,5.3704,186.21,186.16,5.3716]
[1722091321396,5.3706,186.2,186.15,5.372]
[1722091321806,5.3703,186.21,186.15,5.372]
[1722091321990,5.3703,186.21,186.16,5.3716]
[1722091322797,5.3703,186.21,186.15,5.3719]
[1722091322998,5.3706,186.2,186.15,5.3719]
[1722091323998,5.3702,186.21,186.16,5.3716]
[1722091325302,5.3702,186.21,186.1,45.34]
[1722091325303,5.37,186.22,186.17,5.3714]
[1722091325879,5.37,186.22,186.16,5.3716]
[1722091328206,5.3703,186.21,186.16,5.3716]
[1722091329995,1.07353351,186.2,186.04,6.3896]
[1722091330227,0.17,186.19,186.05,16.6042]
[1722091330414,1.07353351,186.18,186.05,16.6042]
[1722091330705,5.372,186.15,186.1,5.3732]
[1722091330908,5.3717,186.16,186.11,5.3731]
[1722091332296,21.07353351,186.21,186.13,5.3724]
[1722091332503,5.3714,186.17,186.12,5.3728]
[1722091333818,5.3717,186.16,186.11,5.3731]
[1722091334801,5.3714,186.17,186.12,5.3728]
[1722091335603,1.07353351,186.21,186.07,0.17]
[1722091335788,29.68593351,186.22,186.07,1.07454611]
[1722091335989,29.68593351,186.22,186.06,65.34]
[1722091335990,5.3709,186.19,186.14,5.372]
[1722091337604,5.3711,186.18,186.13,5.3725]
[1722091338011,5.3715,186.17,186.11,5.3729]
[1722091338194,5.3715,186.17,186.12,5.3728]
[1722091338726,5.3719,186.16,186.1,5.3732]
[1722091339094,5.3719,186.16,186.11,5.3731]
[1722091340221,13.427,186.2,186.06,45.0]
[1722091340398,5.3724,186.14,186.06,45.0]
[1722091341326,5.372,186.15,186.1,5.3733]
[1722091343791,5.3723,186.14,186.06,45.0]
[1722091344216,5.372,186.15,186.06,45.0]
[1722091344801,5.372,186.15,185.92,2.81384992]
[1722091344802,21.07353351,186.14,186.01,15.2732]
[1722091345207,5.3735,186.1,186.01,15.2732]
[1722091345408,5.3737,186.09,186.01,15.2732]
[1722091345832,5.3737,186.09,186.04,5.3751]
[1722091347294,5.374,186.08,186.03,5.3754]
[1722091347895,5.3747,186.06,186.0,5.3763]
[1722091348218,6.44843351,186.05,185.99,5.3765]
[1722091348419,1.07353351,186.04,185.99,5.3765]
[1722091349935,6.5566,186.08,185.98,1.07524905]
[1722091350234,5.3746,186.06,186.0,5.3761]
[1722091350407,5.3746,186.06,186.01,5.3759]
[1722091350803,5.3749,186.05,186.0,5.3763]
[1722091351010,5.3752,186.04,185.98,5.3766]
[1722091351398,20.0,186.07,185.93,24.13014802]
[1722091351604,5.3748,186.06,185.94,45.34]
[1722091351908,5.3748,186.06,186.0,5.3761]
[1722091352304,5.3752,186.04,185.94,45.34]
[1722091352703,1.07353351,186.06,185.94,45.34]
[1722091353105,1.07353351,186.06,185.97,5.3769]
[1722091353307,5.3754,186.03,185.98,45.0]
[1722091353609,1.07353351,186.06,185.98,50.3768]
[1722091353610,5.3752,186.04,185.98,50.3768]
[1722091354711,5.3755,186.03,185.98,5.3768]
[1722091354910,1.07353351,186.03,185.95,5.3775]
[1722091355215,5.3762,186.01,185.95,5.3775]
[1722091356205,15.6385,186.04,185.94,1.07545301]
[1722091356411,21.0137,186.04,185.99,5.3763]
[1722091357237,5.3755,186.03,185.93,16.6592]
[1722091357423,5.376,186.02,185.96,5.3772]
[1722091359337,1.07353351,186.03,185.95,5.3777]
[1722091359527,1.07353351,186.01,185.91,45.0]
[1722091359841,1.07353351,186.01,185.92,5.3784]
[1722091359842,5.3769,185.98,185.92,5.3784]
[1722091360136,33.4392,186.03,185.92,5.3784]
[1722091360137,5.3772,185.97,185.92,5.3784]
[1722091360433,33.4392,186.03,185.9,5.3789]
[1722091360434,6.45103351,185.96,185.9,5.3789]
[1722091360642,6.45103351,185.96,185.8,16.17]
[1722091360643,1.07353351,185.95,185.81,23.0549]
[1722091360821,5.3793,185.9,185.85,5.3806]
[1722091361015,1.07353351,185.95,185.81,23.0549]
[1722091361016,1.07353351,185.89,185.81,23.0549]
[1722091361223,5.3794,185.9,185.84,5.3809]
[1722091361435,1.07353351,185.89,185.82,5.3813]
[1722091361742,21.07353351,185.92,185.81,16.6592]
[1722091361928,5.3798,185.88,185.82,0.04657724]
[1722091362110,1.07353351,185.88,185.83,5.381]
[1722091362315,1.07353351,185.89,185.83,5.381]
[1722091362739,1.07353351,185.89,185.77,6.3957]
[1722091362916,5.3803,185.87,185.82,0.04657724]
[1722091363111,5.3803,185.87,185.81,5.3817]
[1722091363336,5.3798,185.88,185.82,5.3814]
[1722091363531,1.07353351,185.87,185.82,5.3814]
[1722091363738,5.3798,185.88,185.82,5.3814]
[1722091365135,1.07353351,185.91,185.82,5.3814]
[1722091365440,5.3804,185.86,185.81,5.3818]
[1722091366045,5.3804,185.86,185.8,5.382]
[1722091366638,1.07353351,185.85,185.79,5.3823]
[1722091366843,1.07353351,185.85,185.76,16.6592]
[1722091367052,5.3812,185.84,185.77,45.0]
[1722091367347,5.3812,185.84,185.79,5.3823]
[1722091367546,16.609,185.87,185.78,6.1546348]
[1722091367547,6.45483351,185.83,185.78,6.1546348]
[1722091367841,1.07353351,185.82,185.78,6.1546348]
[1722091368051,5.3813,185.83,185.78,6.1546348]
[1722091368723,5.3816,185.82,185.78,0.7720348]
[1722091369248,5.3813,185.83,185.78,6.1546348]
[1722091369622,1.07353351,185.86,185.79,5.3823]
[1722091369823,16.609,185.87,185.78,0.7720348]
[1722091370253,16.609,185.87,185.81,5.3815]
[1722091370453,21.9891,185.87,185.82,5.3814]
[1722091370636,5.3807,185.85,185.79,5.3821]
[1722091370952,5.3807,185.85,185.8,5.382]
[1722091371320,16.609,185.87,185.8,5.382]
[1722091371520,16.609,185.87,185.78,0.7720348]
[1722091371758,5.3815,185.83,185.78,0.7720348]
[1722091372042,5.3809,185.85,185.78,0.7720348]
[1722091372544,6.45443351,185.85,185.79,5.3823]
[1722091372741,5.381,185.84,185.79,5.3823]
[1722091373248,10.97610137,185.92,185.87,5.3801]
[1722091373548,5.3789,185.91,185.86,5.3803]
[1722091373754,5.3781,185.94,185.89,5.3794]
[1722091373926,5.3781,185.94,185.88,5.3798]
[1722091374124,5.3781,185.94,185.88,5.3796]
[1722091374734,5.3781,185.94,185.89,5.3793]
[1722091375354,16.609,185.95,185.82,1.07603016]
[1722091375527,16.609,185.95,185.89,5.3794]
[1722091375528,21.9869,185.95,185.89,5.3794]
[1722091375733,6.09,185.99,185.83,1.41581521]
[1722091376029,11.4668,185.99,185.93,5.3783]
[1722091376241,11.4668,185.99,185.83,1.41581521]
[1722091376242,11.4668,185.99,185.94,5.378]
[1722091376443,11.4668,185.99,185.93,5.3783]
[1722091376645,5.3775,185.96,185.83,1.41581521]
[1722091376946,6.45123351,185.95,185.89,5.3792]
[1722091377148,5.3777,185.95,185.89,5.3792]
[1722091377532,5.3781,185.94,185.89,5.3792]
[1722091378643,5.3781,185.94,185.88,5.3797]
[1722091378835,5.3781,185.94,185.89,5.3794]
[1722091379442,5.3778,185.95,185.89,5.3794]
[1722091379655,5.3775,185.96,185.83,0.34]
[1722091379856,1.07353351,185.95,185.83,0.34]
[1722091380856,1.07353351,185.95,185.91,5.3786]
[1722091381061,5.3769,185.98,185.83,1.4158038]
[1722091381272,1.07353351,185.97,185.92,5.3786]
[1722091381455,6.45083351,185.97,185.92,5.3786]
[1722091383047,6.09,185.99,185.83,1.4158038]
[1722091383247,1.07353351,185.98,185.83,1.4158038]
[1722091383463,5.3769,185.98,185.93,5.3783]
[1722091383657,6.45043351,185.98,185.93,5.3783]
[1722091384447,6.45043351,185.98,185.9,5.3789]
[1722091384448,5.3778,185.95,185.9,5.3789]
[1722091384766,1.07353351,185.98,185.82,21.07587605]
[1722091384951,21.07353351,185.98,185.82,21.07587605]
[1722091385159,21.07353351,185.98,185.81,28.591]
[1722091385347,45.0,185.97,185.81,22.501]
[1722091385553,21.07353351,185.96,185.81,22.501]
[1722091385743,5.3789,185.91,185.86,5.3803]
[1722091385942,15.946,185.92,185.85,5.3806]
[1722091385943,6.45273351,185.9,185.85,5.3806]
[1722091386872,5.3798,185.88,185.83,5.3812]
[1722091387077,5.3798,185.88,185.77,6.4805]
[1722091387078,13.02553351,185.91,185.85,5.3806]
[1722091387264,6.5728,185.91,185.85,5.3806]
[1722091387566,5.3789,185.91,185.77,7.55676486]
[1722091387742,15.946,185.92,185.88,5.3797]
[1722091388146,17.01953351,185.92,185.77,7.55643825]
[1722091388348,5.3798,185.88,185.83,5.3809]
[1722091388666,5.3795,185.9,185.84,5.3809]
[1722091389049,6.45303351,185.9,185.85,5.3806]
[1722091389456,15.946,185.92,185.8,1.07615809]
[1722091389658,15.946,185.92,185.81,0.17]
[1722091389853,15.946,185.92,185.81,0.34]
[1722091390306,6.5728,185.95,185.82,1.07587794]
[1722091390455,6.5728,185.95,185.92,5.3784]
[1722091390761,6.5728,185.95,185.9,5.3789]
[1722091390956,6.5728,185.95,185.91,5.3789]
[1722091391469,7.64633351,185.95,185.83,0.34]
[1722091391981,6.5728,185.95,185.83,0.34]
[1722091392282,15.946,185.96,185.91,5.3788]
[1722091392455,1.07353351,185.99,185.92,45.0]
[1722091392652,5.3769,185.99,185.93,5.378]
[1722091393459,5.3769,185.98,185.93,5.378]
[1722091394182,5.3766,185.99,185.93,5.378]
[1722091394973,22.5188,186.01,185.86,15.546]
[1722091395173,5.3774,185.97,185.92,5.3785]
[1722091395472,5.3774,185.97,185.91,5.3788]
[1722091395790,5.3777,185.96,185.87,0.34]
[1722091395980,1.07353351,186.0,185.92,5.3783]
[1722091396373,21.07353351,186.0,185.92,5.3783]
[1722091396572,5.3773,185.97,185.87,0.34]
[1722091396891,5.3778,185.95,185.9,5.3789]
[1722091397069,1.07353351,186.0,185.92,5.3786]
[1722091397070,5.3772,185.97,185.92,5.3786]
[1722091397270,6.45033351,185.99,185.93,5.3782]
[1722091397874,5.3772,185.97,185.92,5.3786]
[1722091398673,5.3775,185.96,185.91,5.3788]
[1722091399798,1.07353351,185.97,185.85,6.4805]
[1722091400093,1.07353351,185.97,185.86,45.0]
[1722091401197,5.3784,185.93,185.86,45.0]
[1722091401395,5.3784,185.93,185.88,5.3795]
[1722091401702,5.3781,185.94,185.89,5.3793]
[1722091401891,5.3778,185.95,185.9,5.3792]
[1722091402095,14.51633351,185.98,185.86,45.0]
[1722091402096,5.3774,185.97,185.92,5.3784]
[1722091402874,5.3778,185.95,185.9,5.379]
[1722091403278,5.3775,185.96,185.91,5.3788]
[1722091403781,4.8775,185.96,185.91,5.3788]
[1722091404199,20.0,185.97,185.86,45.0]
[1722091404680,5.3774,185.97,185.92,5.3785]
[1722091404879,5.3777,185.96,185.91,5.3788]
[1722091405081,5.3778,185.95,185.9,5.3792]
[1722091407682,5.3787,185.92,185.87,5.38]
[1722091407881,1.07353351,185.97,185.82,15.546]
[1722091408107,1.07353351,185.97,185.84,5.3807]
[1722091408108,5.3797,185.89,185.84,5.3807]
[1722091409787,5.3792,185.9,185.85,5.3806]
[1722091409988,1.07353351,185.93,185.78,1.84812765]
[1722091409989,1.07353351,185.92,185.78,1.84812765]
[1722091410290,5.3798,185.88,185.83,5.3812]
[1722091410803,5.3804,185.86,185.81,5.3817]
[1722091411103,5.3801,185.87,185.82,5.3815]
[1722091411407,5.3801,185.87,185.78,0.7720348]
[1722091411408,5.3804,185.86,185.81,5.3818]
[1722091411792,5.3807,185.85,185.8,5.382]
[1722091411993,5.3804,185.86,185.81,5.3818]
[1722091412983,14.52293351,185.89,185.78,0.7720348]
[1722091413312,22.6557,185.86,185.78,0.7720348]
[1722091413607,1.07353351,185.85,185.78,0.7720348]
[1722091413804,5.3818,185.82,185.78,0.7720348]
[1722091414000,21.07353351,185.85,185.78,0.7720348]
[1722091414001,5.3821,185.8,185.78,0.7720348]
[1722091414186,5.3818,185.81,185.78,0.7720348]
[1722091414381,5.3821,185.8,185.78,0.7720348]
[1722091414582,5.3819,185.81,185.78,0.7720348]
[1722091414890,5.3815,185.82,185.78,0.7720348]
[1722091415090,6.45503351,185.82,185.78,0.7720348]
[1722091415481,5.3822,185.8,185.78,0.7720348]
[1722091416317,6.45593351,185.79,185.78,0.7720348]
[1722091417016,5.3824,185.79,185.78,0.7720348]
[1722091417802,6.45593351,185.79,185.78,0.7720348]
[1722091418315,5.3824,185.79,185.78,0.7720348]
[1722091418513,6.45593351,185.79,185.78,0.7720348]
[1722091418915,26.45593351,185.79,185.78,0.7720348]
[1722091420599,25.3824,185.79,185.78,0.7720348]
[1722091421594,20.0,185.79,185.78,0.7720348]
[1722091421805,1.07353351,185.84,185.78,0.7720348]
[1722091422120,5.3818,185.81,185.78,0.7720348]
[1722091422324,5.3816,185.82,185.78,0.7720348]
[1722091422487,2.18659754,185.88,185.78,0.7720348]
[1722091422693,22.6557,185.9,185.84,5.3809]
[1722091422916,5.3789,185.91,185.85,5.3805]
[1722091423216,1.07353351,185.94,185.84,5.3809]
[1722091423592,1.07353351,185.94,185.79,0.34]
[1722091423593,5.3799,185.88,185.79,0.17]
[1722091423897,5.3799,185.88,185.78,0.7720348]
[1722091424212,1.07353351,185.87,185.79,5.3821]
[1722091424386,5.3806,185.86,185.8,5.3818]
[1722091424814,6.45413351,185.86,185.8,5.3818]
[1722091425186,1.07353351,185.91,185.82,5.3814]
[1722091425390,21.07353351,185.91,185.82,5.3814]
[1722091425587,21.07353351,185.91,185.81,5.3817]
[1722091425910,5.3807,185.85,185.79,5.3821]
[1722091426214,20.17,185.9,185.78,0.7720348]
[1722091426418,13.4502,185.87,185.78,0.7720348]
[1722091426620,5.3813,185.83,185.78,6.1547348]
[1722091427401,5.3813,185.83,185.78,0.7720348]
[1722091428014,6.45503351,185.82,185.78,0.7720348]
[1722091428212,1.07353351,185.82,185.78,0.7720348]
[1722091428512,5.3817,185.82,185.78,0.7720348]
[1722091428693,1.07353351,185.84,185.78,0.7720348]
[1722091428901,21.07353351,185.84,185.78,0.7720348]
[1722091430214,5.382,185.81,185.78,0.7720348]
[1722091432602,1.07353351,185.83,185.78,0.7720348]
[1722091433015,1.07353351,185.82,185.78,0.7720348]
[1722091433611,1.07353351,185.83,185.78,0.7720348]
[1722091434011,5.3818,185.81,185.78,0.7720348]
[1722091434409,5.3815,185.82,185.78,0.7720348]
[1722091434898,6.45503351,185.82,185.78,0.7720348]
[1722091435102,5.0337,185.81,185.78,0.7720348]
[1722091435531,20.0,185.84,185.78,0.7720348]
[1722091435733,13.4503,185.87,185.78,0.7720348]
[1722091435734,5.3803,185.87,185.82,5.3815]
[1722091435906,1.07353351,185.88,185.78,0.7720348]
[1722091436103,5.3806,185.86,185.81,5.3818]
[1722091436413,5.3811,185.84,185.78,6.1544348]
[1722091436813,6.45473351,185.83,185.78,6.1544348]
[1722091437001,5.3812,185.83,185.78,6.1544348]
[1722091437205,5.3818,185.81,185.78,0.7720348]
[1722091437405,1.07353351,185.82,185.78,0.7720348]
[1722091437622,21.07353351,185.85,185.78,0.7720348]
[1722091437922,5.3817,185.82,185.78,0.7720348]
[1722091438530,5.3818,185.81,185.78,0.7720348]
[1722091439221,5.3821,185.8,185.78,0.7720348]
[1722091439443,5.3819,185.81,185.78,0.7720348]
[1722091440233,1.07353351,185.84,185.78,0.7720348]
[1722091441106,5.3824,185.79,185.78,0.7720348]
[1722091441428,5.382,185.81,185.78,0.7720348]
[1722091441621,5.3821,185.8,185.78,0.7720348]
[1722091442426,20.0,185.85,185.78,0.7720348]
[1722091442734,6.45443351,185.85,185.8,5.382]
[1722091443104,5.3809,185.85,185.8,5.382]
[1722091444639,22.50763351,185.9,185.78,17.0816348]
[1722091444821,5.3798,185.88,185.84,5.3809]
[1722091445023,5.3795,185.89,185.84,5.3809]
[1722091445617,5.3798,185.88,185.83,5.3811]
[1722091446317,5.3794,185.9,185.85,5.3806]
[1722091446515,5.3797,185.89,185.79,45.0]
[1722091446715,5.3797,185.89,185.84,5.3807]
[1722091447640,1.07353351,185.93,185.85,6.3292]
[1722091447940,5.3786,185.92,185.87,5.38]
[1722091449113,5.3784,185.93,185.88,5.3797]
[1722091450571,5.3781,185.94,185.89,5.3792]
[1722091450719,5.3781,185.94,185.9,5.3792]
[1722091451041,5.3781,185.94,185.89,5.3794]
[1722091451347,5.3778,185.95,185.89,5.3792]
[1722091451837,5.378,185.94,185.87,16.1642]
[1722091452052,5.378,185.94,185.88,45.0]
[1722091453524,14.51503351,186.0,185.88,45.0]
[1722091453720,5.3772,185.97,185.92,5.3784]
[1722091454046,18.77764468,186.01,185.93,5.3782]
[1722091454047,5.3769,185.98,185.93,5.3782]
[1722091454261,5.3772,185.97,185.93,5.3782]
[1722091454557,5.3772,185.97,185.92,5.3786]
[1722091455160,5.3772,185.97,185.93,5.3783]
[1722091455348,5.3767,185.99,185.94,5.378]
[1722091456249,5.3758,186.02,185.97,5.3771]
[1722091456551,1.07353351,186.05,185.96,5.3774]
[1722091456730,1.07353351,186.04,185.96,5.3774]
[1722091457057,5.3761,186.01,185.97,5.3771]
[1722091457645,5.3761,186.01,185.96,5.3774]
[1722091457837,1.07353351,186.0,185.95,16.1642]
[1722091458037,1.07353351,186.05,185.95,21.5419]
[1722091458237,5.376,186.01,185.96,5.3774]
[1722091458639,5.3755,186.03,185.98,5.3766]
[1722091459051,5.3757,186.02,185.98,5.3766]
[1722091459547,13.4343,186.09,185.98,5.3767]
[1722091459753,1.07353351,186.08,185.95,16.1642]
[1722091460069,14.50983351,186.07,185.96,45.0]
[1722091460259,14.50983351,186.07,185.95,16.1642]
[1722091460557,5.3766,185.99,185.95,16.1642]
[1722091460745,5.3763,186.0,185.95,21.5419]
[1722091461134,5.3759,186.02,185.97,5.3771]
[1722091461551,14.51123351,186.05,185.95,21.5417]
[1722091461552,5.3762,186.01,185.95,21.5417]
[1722091461855,5.3762,186.01,185.95,16.1642]
[1722091462235,5.3764,186.0,185.95,16.1642]
[1722091463155,5.3764,186.0,185.95,21.5419]
[1722091463467,5.3767,185.99,185.94,5.378]
[1722091463632,13.4394,186.02,185.91,16.1642]
[1722091463828,5.377,185.98,185.93,5.3782]
[1722091464048,5.3764,186.0,185.95,5.3777]
[1722091466558,5.376,186.01,185.96,5.3774]
[1722091466746,1.07353351,186.0,185.91,16.1642]
[1722091466953,21.07353351,186.03,185.92,45.0]
[1722091467268,20.0,186.03,185.92,45.0]
[1722091467558,5.376,186.01,185.96,5.3772]
[1722091468549,5.376,186.01,185.92,45.0]
[1722091468550,28.7317,186.08,185.98,5.3766]
[1722091468758,5.3752,186.04,185.99,5.3765]
[1722091469058,5.3754,186.03,185.99,5.3765]
[1722091469566,5.3754,186.03,185.98,5.3768]
[1722091469751,5.376,186.01,185.96,5.3773]
[1722091469949,13.4369,186.06,185.93,1.07546654]
[1722091470139,20.0,186.05,185.94,0.17]
[1722091470759,1.07353351,186.04,185.92,45.17]
[1722091470946,5.3765,186.0,185.95,5.3777]
[1722091471146,21.07353351,186.05,185.94,5.3778]
[1722091471460,5.3765,186.0,185.95,5.3775]
[1722091472564,5.3761,186.01,185.96,5.3774]
[1722091472885,5.3761,186.01,185.97,5.3771]
[1722091473442,5.3756,186.03,185.98,5.3769]
[1722091473968,15.2966,186.08,185.93,1.07544927]
[1722091474141,6.1543,186.1,185.94,0.34]
[1722091474471,5.3737,186.09,186.04,5.3749]
[1722091474670,5.374,186.08,186.03,5.3754]
[1722091475038,5.3743,186.07,186.03,5.3754]
[1722091475439,5.3743,186.07,185.99,17.69631753]
[1722091475667,5.3743,186.07,186.0,45.0]
[1722091475835,5.3743,186.07,186.01,1.07503158]
[1722091476040,5.3743,186.07,186.02,1.07503165]
[1722091476256,5.374,186.08,186.02,1.07503165]
[1722091476460,5.374,186.08,186.0,45.0]
[1722091476644,5.3743,186.07,186.03,5.3752]
[1722091477050,5.3743,186.07,186.0,45.0]
[1722091477445,15.2966,186.12,186.0,45.0]
[1722091477645,20.0,186.11,186.04,5.3751]
[1722091477858,1.07353351,186.16,186.0,46.07497086]
[1722091478143,5.3731,186.12,186.07,5.374]
[1722091479042,5.3732,186.11,186.05,5.3746]
[1722091479243,5.3732,186.11,186.06,45.0]
[1722091479651,5.3732,186.11,186.06,50.3744]
[1722091480459,5.3734,186.1,186.05,5.3748]
[1722091480959,13.4306,186.15,186.01,0.34]
[1722091481169,21.07353351,186.14,186.0,65.34]
[1722091481374,21.07353351,186.14,186.02,0.17]
[1722091481573,21.07353351,186.14,186.0,65.34]
[1722091481960,5.3734,186.11,186.06,5.3745]
[1722091482163,5.3734,186.1,186.05,5.3748]
[1722091483554,5.3734,186.1,186.06,5.3746]
[1722091485374,5.3732,186.11,186.06,5.3746]
[1722091485763,5.3729,186.12,186.07,5.3742]
[1722091486156,20.0,186.14,186.01,1.07484031]
[1722091486474,5.3723,186.14,186.09,5.3735]
[1722091486648,6.44583351,186.14,186.09,5.3735]
[1722091486844,5.3723,186.14,186.09,5.3735]
[1722091488177,5.3726,186.13,186.08,5.3739]
[1722091488553,5.3723,186.14,186.09,5.3735]
[1722091488877,1.07353351,186.16,186.02,0.34]
[1722091489170,1.07353351,186.14,186.01,0.34]
[1722091489562,6.44603351,186.14,186.09,5.3734]
[1722091489770,5.3726,186.13,186.09,5.3734]
[1722091490673,5.3726,186.13,186.08,5.3739]
[1722091491069,5.3728,186.12,186.08,5.3739]
[1722091491258,5.3728,186.12,186.02,1.07474974]
[1722091491259,5.3728,186.12,186.07,5.3742]
[1722091491463,5.3732,186.11,186.06,5.3745]
[1722091492270,5.3738,186.09,186.04,5.3749]
[1722091492471,5.3734,186.1,186.05,5.3747]
[1722091492650,1.07353351,186.15,186.05,5.3747]
[1722091492855,5.3731,186.11,186.07,5.3741]
[1722091493055,5.3731,186.11,186.06,5.3745]
[1722091495167,5.3735,186.1,186.05,5.3748]
[1722091495678,21.07353351,186.15,186.05,5.3748]
[1722091495854,13.6012,186.14,186.04,5.375]
[1722091496057,21.07353351,186.13,186.0,45.0]
[1722091496282,21.07353351,186.13,186.04,5.3751]
[1722091496283,5.3737,186.09,186.04,5.3751]
[1722091496459,5.3735,186.1,186.05,5.3748]
[1722091496659,5.3738,186.09,186.04,5.3751]
[1722091497282,5.3738,186.09,186.05,5.3748]
[1722091497665,5.3735,186.1,186.05,5.3748]
[1722091497863,5.3738,186.09,186.04,5.3751]
[1722091498270,5.3738,186.09,186.05,5.3748]
[1722091498477,6.44703351,186.1,186.05,5.3748]
[1722091499758,6.44703351,186.1,186.0,45.0]
[1722091499759,5.3737,186.09,186.04,5.3751]
[1722091499959,6.44723351,186.09,186.04,5.3751]
[1722091500270,5.3734,186.1,186.05,5.3748]
[1722091500874,1.07353351,186.09,186.0,45.0]
[1722091501182,5.3746,186.06,186.01,5.3759]
[1722091502379,5.3743,186.07,186.02,5.3757]
[1722091502686,5.3746,186.06,186.02,5.3757]
[1722091502899,5.3746,186.06,186.01,5.3759]
[1722091503262,5.3749,186.05,186.0,5.3762]
[1722091503488,5.3753,186.04,185.95,16.047]
[1722091503989,5.3753,186.04,186.0,5.3763]
[1722091504985,5.3755,186.03,185.98,5.3767]
[1722091505773,5.3758,186.02,185.97,5.3771]
[1722091506805,5.3766,185.99,185.95,5.3777]
[1722091507100,15.8291,186.03,185.96,5.3774]
[1722091507400,20.0,186.02,185.96,5.3774]
[1722091508163,5.376,186.01,185.96,5.3774]
[1722091508993,5.3763,186.0,185.96,5.3774]
[1722091509171,5.3763,186.0,185.95,5.3777]
[1722091509373,5.3768,185.99,185.91,16.2059]
[1722091509795,5.3768,185.99,185.94,5.378]
[1722091510475,5.3768,185.99,185.95,5.3777]
[1722091510670,4.7782,185.99,185.95,5.3777]
[1722091510870,5.3764,186.0,185.95,5.3777]
[1722091511696,5.376,186.01,185.96,5.3774]
[1722091512790,5.3763,186.0,185.96,5.3774]
[1722091513095,13.4353,186.08,185.91,17.2814674]
[1722091513392,5.3751,186.05,186.0,5.3761]
[1722091513595,5.3751,186.05,185.93,1.07522119]
[1722091513803,5.3748,186.06,186.0,5.3763]
[1722091514013,5.3744,186.07,186.02,5.3757]
[1722091514311,5.3745,186.07,186.01,5.376]
[1722091514603,5.3757,186.02,185.98,5.3768]
[1722091514799,5.3757,186.02,185.94,0.34]
[1722091515109,5.3763,186.01,185.93,0.17]
[1722091515281,5.3758,186.02,185.97,5.3771]
[1722091515479,1.07353351,186.06,185.93,0.17]
[1722091515676,5.376,186.02,185.97,5.3771]
[1722091516373,21.07353351,186.06,185.93,0.34]
[1722091516587,5.3755,186.03,185.99,5.3766]
[1722091516781,6.44903351,186.03,185.98,5.3768]
[1722091517578,5.3757,186.02,185.98,5.3768]
[1722091517796,5.3762,186.01,185.96,5.3773]
[1722091518178,5.3767,185.99,185.94,5.378]